bitfinex/quotes_ETHUSD_20240917
["timestamp","ask_amount","ask_price","bid_price","bid_amount"]
[1726549377614,4.35757,2294.9,2294.7,1.3515137]
[1726549377772,4.35757,2294.9,2294.6,3.60628401]
[1726549377773,4.35757,2294.9,2294.6,4.52065852]
[1726549377969,4.35757,2294.9,2294.7,3.37872222]
[1726549378168,4.35757,2294.9,2294.6,4.52065852]
[1726549378412,4.35757,2294.9,2294.7,3.37879975]
[1726549378713,4.35757,2294.9,2294.6,4.52065852]
[1726549378898,4.35757,2294.9,2294.7,3.37877545]
[1726549379215,4.35757,2294.9,2294.6,4.52065852]
[1726549379414,4.35757,2294.9,2294.7,3.37901725]
[1726549379718,4.35757,2294.9,2294.6,3.37487451]
[1726549379883,8.71514,2294.9,2294.7,3.37904525]
[1726549380083,8.71514,2294.9,2294.6,3.37487451]
[1726549380410,4.35757,2294.9,2294.7,3.37907731]
[1726549380610,8.71515,2294.9,2294.6,3.59756399]
[1726549380814,8.71515,2294.9,2294.7,3.37922597]
[1726549381033,8.71515,2294.9,2294.6,4.5119385]
[1726549381219,4.35757,2294.9,2294.7,3.37923648]
[1726549381400,8.71514,2294.9,2294.6,4.5119385]
[1726549381606,4.35757,2294.9,2294.7,3.37931983]
[1726549381814,4.35757,2294.9,2294.6,4.5119385]
[1726549382130,4.35732,2295.0,2294.8,2.4563]
[1726549382293,4.35748,2294.9,2294.8,2.4563]
[1726549382491,4.35748,2294.9,2294.8,3.80782181]
[1726549382809,4.35748,2294.9,2294.8,3.80786323]
[1726549383318,4.35748,2294.9,2294.8,2.4563]
[1726549384536,4.35748,2294.9,2294.8,3.80808217]
[1726549384692,4.35748,2294.9,2294.8,3.80821736]
[1726549384889,4.35748,2294.9,2294.8,2.4563]
[1726549389311,4.35748,2294.9,2294.8,3.80879737]
[1726549389521,4.35748,2294.9,2294.8,2.4563]
[1726549389937,4.35748,2294.9,2294.8,3.80885362]
[1726549390127,4.35748,2294.9,2294.8,2.4563]
[1726549391204,4.35748,2294.9,2294.8,3.80881123]
[1726549391400,4.35748,2294.9,2294.8,2.4563]
[1726549393204,4.35748,2294.9,2294.8,3.80882634]
[1726549393739,4.35748,2294.9,2294.8,2.4563]
[1726549394126,4.35748,2294.9,2294.8,3.80886905]
[1726549395719,4.35748,2294.9,2294.8,3.80889526]
[1726549396453,2.3871,2295.2,2294.8,13.18423493]
[1726549396454,4.35693,2295.2,2294.8,13.18423493]
[1726549396745,7.47,2295.3,2294.8,13.18423493]
[1726549396746,7.47,2295.3,2295.0,3.84026753]
[1726549396906,11.82673,2295.3,2295.1,3.380571]
[1726549397106,11.82673,2295.3,2295.0,3.84026753]
[1726549397107,4.35673,2295.3,2295.0,3.84026753]
[1726549397307,4.35673,2295.3,2295.0,4.95994758]
[1726549397540,4.35692,2295.2,2295.0,1.11968005]
[1726549398551,11.66206908,2295.4,2295.0,1.11968005]
[1726549398716,11.66206908,2295.4,2295.1,3.01182679]
[1726549398717,4.35673,2295.3,2295.1,3.01182679]
[1726549399748,4.81271908,2295.4,2295.1,3.01182679]
[1726549400062,4.35654,2295.4,2295.1,3.09895956]
[1726549400352,4.35654,2295.4,2295.2,2.54267469]
[1726549403026,8.7132,2295.4,2295.2,2.54267469]
[1726549403233,8.7132,2295.4,2295.2,1.44876753]
[1726549403773,4.35654,2295.4,2295.2,1.44876753]
[1726549406623,4.35637,2295.5,2295.2,1.44876753]
[1726549407242,4.35637,2295.5,2295.2,2.33925697]
[1726549407771,4.35645,2295.5,2295.3,2.4035]
[1726549411906,4.35645,2295.5,2295.2,1.44876753]
[1726549413233,4.35645,2295.5,2295.2,2.41361303]
[1726549415166,4.35645,2295.5,2295.2,2.50074056]
[1726549416957,4.35617,2295.6,2295.2,2.50074056]
[1726549417155,4.35617,2295.6,2295.4,2.4632]
[1726549418242,4.35634,2295.5,2295.4,2.4632]
[1726549418413,4.35634,2295.5,2295.2,3.91196753]
[1726549418692,4.35634,2295.5,2295.3,0.6770703]
[1726549420272,8.7128,2295.5,2295.3,0.6770703]
[1726549420457,8.7128,2295.5,2295.2,3.91196753]
[1726549420458,4.35634,2295.5,2295.2,3.91196753]
[1726549420897,8.7128,2295.5,2295.2,3.91196753]
[1726549421195,4.35634,2295.5,2295.2,3.91196753]
[1726549421402,8.71277,2295.5,2295.2,3.91196753]
[1726549421569,4.35634,2295.5,2295.2,3.91196753]
[1726549421774,4.35634,2295.5,2295.2,4.74758592]
[1726549423596,4.35634,2295.5,2295.2,2.28438592]
[1726549425125,8.71285,2295.5,2295.2,2.28438592]
[1726549425427,4.35654,2295.4,2295.2,1.44876753]
[1726549428593,4.35634,2295.5,2295.2,1.44876753]
[1726549428777,4.35634,2295.5,2295.3,2.2993]
[1726549428981,8.71281,2295.5,2295.3,2.2993]
[1726549430796,4.35634,2295.5,2295.3,2.2993]
[1726549431002,4.35634,2295.5,2295.3,3.10237915]
[1726549431003,8.7128,2295.5,2295.3,3.10237915]
[1726549431221,8.7128,2295.5,2295.3,2.2993]
[1726549432299,4.35634,2295.5,2295.3,2.2993]
[1726549434235,8.71278,2295.5,2295.3,2.2993]
[1726549434608,4.35634,2295.5,2295.3,2.2993]
[1726549437654,6.72824,2295.5,2295.2,1.44876753]
[1726549438217,6.72824,2295.5,2295.2,2.27796128]
[1726549438415,11.0847,2295.5,2295.2,2.27796128]
[1726549438857,6.72824,2295.5,2295.2,2.27796128]
[1726549439947,2.3719,2295.5,2295.2,2.27796128]
[1726549441757,4.35616,2295.6,2295.2,2.27796128]
[1726549442260,4.35616,2295.6,2295.3,1.35086322]
[1726549442455,4.35616,2295.6,2295.3,1.1386289]
[1726549444330,4.35616,2295.6,2295.2,3.19233579]
[1726549444535,4.35616,2295.6,2295.3,3.37819003]
[1726549444735,4.35616,2295.6,2295.2,3.19233579]
[1726549444935,4.35616,2295.6,2295.3,3.3786033]
[1726549445135,4.35616,2295.6,2295.2,3.19233579]
[1726549445338,4.35616,2295.6,2295.3,3.37927447]
[1726549445551,4.35616,2295.6,2295.2,3.19233579]
[1726549445870,4.35616,2295.6,2295.3,3.37925892]
[1726549446031,4.35616,2295.6,2295.2,3.19233579]
[1726549446368,4.35616,2295.6,2295.3,3.3793989]
[1726549446528,4.35616,2295.6,2295.2,3.19233579]
[1726549446730,4.35616,2295.6,2295.3,3.37959016]
[1726549447062,4.35616,2295.6,2295.2,3.19233579]
[1726549447356,4.35616,2295.6,2295.3,3.37959492]
[1726549447560,4.35616,2295.6,2295.2,3.19233579]
[1726549447770,4.35616,2295.6,2295.3,3.37967675]
[1726549447933,4.35616,2295.6,2295.2,3.19233579]
[1726549448264,4.35616,2295.6,2295.3,3.379695]
[1726549448466,4.35616,2295.6,2295.4,1.351878]
[1726549448672,4.35616,2295.6,2295.2,2.36314204]
[1726549448877,4.35616,2295.6,2295.3,3.37961956]
[1726549448878,4.35618,2295.6,2295.3,3.37961956]
[1726549449157,4.35618,2295.6,2295.4,1.35185446]
[1726549449472,4.35618,2295.6,2295.2,0.91437451]
[1726549449766,4.35618,2295.6,2295.3,3.37979203]
[1726549449968,4.35644,2295.5,2295.4,1.35191681]
[1726549450524,0.49432148,2295.9,2295.4,1.57854594]
[1726549450877,0.54146357,2296.6,2296.2,3.0]
[1726549450878,0.03996014,2296.6,2296.2,3.0]
[1726549451047,0.03996014,2296.6,2296.4,0.91152783]
[1726549451383,0.03996014,2296.6,2296.5,3.3786634]
[1726549451673,0.03996014,2296.6,2296.3,5.80345753]
[1726549451829,0.03996014,2296.6,2296.4,1.19938049]
[1726549452171,0.03996014,2296.6,2296.3,4.35469]
[1726549452381,0.0017004,2296.5,2296.4,1.34723659]
[1726549452671,0.0017004,2296.5,2296.4,4.35464]
[1726549452839,0.0017004,2296.5,2296.4,5.91612275]
[1726549457481,0.0017004,2296.5,2296.0,4.35536]
[1726549457482,0.0017004,2296.5,2296.1,5.80385753]
[1726549457642,0.0017004,2296.5,2296.1,10.15894753]
[1726549457838,0.0017004,2296.5,2296.1,10.15893753]
[1726549458037,0.0017004,2296.5,2296.2,5.61337375]
[1726549459459,0.0017004,2296.5,2296.3,1.44876753]
[1726549460353,0.0017004,2296.5,2296.4,4.35464]
[1726549460967,0.0017004,2296.5,2296.4,6.67554]
[1726549461986,0.0017004,2296.5,2296.4,6.76262238]
[1726549462146,0.0017004,2296.5,2296.4,12.37387037]
[1726549470457,0.0017004,2296.5,2296.4,12.28678799]
[1726549472768,0.0017004,2296.5,2296.4,5.61124799]
[1726549472967,0.0017004,2296.5,2296.4,7.06001552]
[1726549493134,0.0017004,2296.5,2296.4,9.37371552]
[1726549494465,0.45748958,2296.5,2296.4,9.37371552]
[1726549495030,0.45748958,2296.5,2296.4,10.71803164]
[1726549495433,0.45748958,2296.5,2296.4,12.73628868]
[1726549495675,0.45748958,2296.5,2296.4,12.73753314]
[1726549496576,0.45748958,2296.5,2296.4,16.80019453]
[1726549499662,0.45748958,2296.5,2296.4,21.15483453]
[1726549500039,0.45748958,2296.5,2296.4,16.80019453]
[1726549500370,0.45748958,2296.5,2296.4,21.15483453]
[1726549500672,0.45748958,2296.5,2296.4,16.80504411]
[1726549501660,0.45748958,2296.5,2296.4,21.15968411]
[1726549502088,0.0382537,2296.6,2296.5,15.46785]
[1726549502308,0.0382537,2297.2,2296.5,15.46785]
[1726549502309,0.0382537,2297.2,2297.1,15.43923]
[1726549502490,0.0382537,2297.2,2297.1,15.36381105]
[1726549502648,0.0382537,2297.2,2297.1,17.79860713]
[1726549502843,0.0382537,2297.2,2297.1,17.79859141]
[1726549503157,0.0382537,2297.2,2297.1,17.79860251]
[1726549503383,0.0382537,2297.2,2297.1,5.80351341]
[1726549503689,0.0382537,2297.2,2297.1,10.15682341]
[1726549503898,0.0382537,2297.2,2297.1,8.13562309]
[1726549504181,0.0382537,2297.2,2297.1,2.43484621]
[1726549504566,2.4615537,2297.2,2297.0,5.80221753]
[1726549505700,2.4615537,2297.2,2296.8,4.35387]
[1726549506154,6.8147137,2297.2,2296.8,3.0]
[1726549507254,6.8147137,2297.2,2296.8,4.63806466]
[1726549507450,6.8147137,2297.2,2296.8,8.99193466]
[1726549507451,2.4615537,2297.2,2296.8,8.99193466]
[1726549508053,2.4615537,2297.2,2296.9,1.44876753]
[1726549511385,6.8147137,2297.2,2296.9,1.44876753]
[1726549513134,6.8147137,2297.2,2296.8,1.63806466]
[1726549513135,4.35333,2297.1,2296.8,1.63806466]
[1726549513449,4.35333,2297.1,2296.7,4.44876753]
[1726549514544,4.35353,2297.0,2296.7,4.44876753]
[1726549514752,6.66549,2296.9,2296.8,1.11175275]
[1726549514909,4.35426,2296.6,2296.4,0.9091691]
[1726549515108,6.66606,2296.6,2296.4,0.80104201]
[1726549515303,6.66606,2296.6,2296.2,3.91896753]
[1726549515529,4.35447,2296.5,2296.2,2.4702]
[1726549515864,4.35445,2296.5,2296.1,2.35793663]
[1726549516059,4.35445,2296.5,2296.3,1.44876753]
[1726549516346,2.3118,2296.6,2296.3,1.44876753]
[1726549516504,2.3118,2296.6,2296.5,1.44876753]
[1726549516705,4.35397,2296.8,2296.5,1.73852104]
[1726549516706,6.78947,2296.8,2296.5,1.73852104]
[1726549517149,11.14344,2296.8,2296.5,1.73852104]
[1726549517550,4.35412,2296.7,2296.5,1.73852104]
[1726549518060,6.78947,2296.8,2296.5,1.73852104]
[1726549518347,11.14344,2296.8,2296.5,1.73852104]
[1726549518568,6.85321,2297.0,2296.7,1.44876753]
[1726549518727,12.27918578,2297.1,2297.0,1.44876753]
[1726549518916,0.45578578,2297.1,2297.0,1.44876753]
[1726549519355,0.45578578,2297.1,2297.0,2.03773795]
[1726549519642,0.45578578,2297.1,2297.0,1.44876753]
[1726549527722,0.45578578,2297.1,2296.8,4.44876753]
[1726549528067,0.45578578,2297.1,2296.8,8.80263753]
[1726549528253,0.45578578,2297.1,2296.9,1.11375375]
[1726549529748,2.4276,2297.0,2296.9,1.11375375]
[1726549529935,2.4276,2297.0,2296.7,4.44876753]
[1726549531553,0.1086219,2296.9,2296.7,4.44876753]
[1726549531734,0.1086219,2296.9,2296.8,0.88029375]
[1726549531938,2.4276,2297.0,2296.8,0.88029375]
[1726549532579,0.10906137,2296.9,2296.8,0.88029375]
[1726549532971,2.4276,2297.0,2296.8,0.88029375]
[1726549533281,0.10906137,2296.9,2296.8,0.88029375]
[1726549533471,0.10906137,2296.9,2296.7,4.44876753]
[1726549540571,0.10906137,2296.9,2296.7,1.44876753]
[1726549548461,0.10906137,2296.9,2296.7,5.88990686]
[1726549548657,0.10906137,2296.9,2296.7,1.53583686]
[1726549548883,0.10906137,2296.9,2296.7,2.82436248]
[1726549553500,4.80918578,2297.1,2296.7,2.91143139]
[1726549553711,0.10899476,2296.8,2296.7,2.91143139]
[1726549553926,4.80918578,2297.1,2296.7,6.27212994]
[1726549554209,0.10899476,2296.8,2296.7,2.91143139]
[1726549554416,4.80918578,2297.1,2296.8,0.81747405]
[1726549554910,9.16258578,2297.1,2296.8,0.81747405]
[1726549555112,4.80918578,2297.1,2296.8,0.81747405]
[1726549555300,4.3534,2297.1,2296.8,0.81747405]
[1726549555612,8.7068,2297.1,2296.8,0.81747405]
[1726549555778,4.3534,2297.1,2296.7,1.53583644]
[1726549556319,8.70681,2297.1,2296.7,1.53583644]
[1726549556522,8.70681,2297.1,2296.7,1.44876753]
[1726549558986,4.35355,2297.0,2296.7,1.44876753]
[1726549559489,2.299,2296.9,2296.6,0.9091691]
[1726549559695,2.299,2296.9,2296.7,1.34449165]
[1726549560012,2.299,2296.9,2296.7,1.44876753]
[1726549563349,2.299,2296.9,2296.4,0.9091691]
[1726549563350,2.3927,2296.6,2296.4,0.9091691]
[1726549563544,2.3927,2296.6,2296.5,3.3634309]
[1726549563738,2.3927,2296.6,2296.3,0.9091691]
[1726549564021,2.3927,2296.6,2296.4,3.36395477]
[1726549564022,6.74706,2296.6,2296.4,3.36395477]
[1726549564233,6.74716,2296.5,2296.2,0.9091691]
[1726549564522,2.3927,2296.5,2296.3,1.34562178]
[1726549564731,2.3927,2296.5,2296.2,7.04699977]
[1726549564732,2.3927,2296.5,2296.2,7.95616887]
[1726549564940,2.3927,2296.5,2296.3,3.36457166]
[1726549565110,2.3927,2296.5,2296.2,7.04699977]
[1726549565293,2.3927,2296.5,2296.3,2.71299074]
[1726549565493,2.3927,2296.5,2296.3,1.36751647]
[1726549565691,2.3927,2296.5,2296.2,5.80376753]
[1726549566106,0.10845665,2296.4,2296.2,5.80376753]
[1726549566533,0.10845665,2296.4,2296.3,5.70910486]
[1726549566823,0.10845665,2296.4,2296.3,11.06018798]
[1726549567008,4.35388,2296.8,2296.3,11.06018798]
[1726549567325,11.10257,2296.9,2296.5,1.44876753]
[1726549567523,4.35396,2296.8,2296.5,1.44876753]
[1726549569313,2.4561,2296.7,2296.5,1.44876753]
[1726549570459,6.81019,2296.7,2296.5,1.44876753]
[1726549570652,2.4561,2296.7,2296.3,6.71275663]
[1726549570840,2.4561,2296.7,2296.4,2.53412983]
[1726549571045,2.4561,2296.7,2296.4,1.18930591]
[1726549571842,6.81026,2296.7,2296.2,5.2640391]
[1726549572023,2.2583,2296.6,2296.3,1.34484341]
[1726549572359,2.2583,2296.6,2296.3,0.805765]
[1726549573463,6.61259,2296.6,2296.3,0.805765]
[1726549573647,6.61259,2296.6,2296.2,3.0]
[1726549573843,10.96695,2296.6,2296.2,3.0]
[1726549574070,6.61259,2296.6,2296.2,3.0]
[1726549578445,4.35455,2296.5,2296.1,3.0]
[1726549578642,4.35455,2296.5,2296.1,4.44876753]
[1726549578971,4.35455,2296.5,2296.1,6.23366977]
[1726549579774,4.35455,2296.5,2296.1,10.58884977]
[1726549581182,0.1082198,2296.4,2296.1,10.58884977]
[1726549582042,4.35504,2296.2,2295.9,0.9091691]
[1726549582239,4.35504,2296.2,2295.8,4.35561]
[1726549582573,0.10836035,2296.1,2295.9,1.34402478]
[1726549582870,4.35502,2296.2,2295.9,1.44876753]
[1726549583088,2.4289624,2296.1,2295.8,5.84836924]
[1726549583288,2.4289624,2296.1,2295.8,7.29713677]
[1726549583576,2.4289624,2296.1,2296.0,1.44876753]
[1726549583878,0.1087624,2296.1,2296.0,11.4462764]
[1726549584084,6.67487,2296.4,2296.0,9.43071605]
[1726549584371,0.10882357,2296.3,2296.0,8.08696753]
[1726549584575,0.10882357,2296.3,2296.2,1.44876753]
[1726549584782,0.10882357,2296.3,2296.2,5.80378753]
[1726549584951,0.10882357,2296.3,2296.2,5.89087266]
[1726549585135,2.301,2296.6,2296.3,4.35482]
[1726549586572,2.301,2296.6,2296.1,4.35505]
[1726549586752,2.301,2296.6,2296.2,7.90182423]
[1726549587086,2.301,2296.6,2296.2,6.55844944]
[1726549596170,0.10822679,2296.5,2296.2,6.55844944]
[1726549600782,0.10822679,2296.5,2296.2,2.20346944]
[1726549601090,2.2524,2296.4,2296.2,2.20346944]
[1726549601401,0.10813807,2296.3,2296.2,2.20346944]
[1726549601553,0.10813807,2296.3,2296.2,3.54798844]
[1726549602486,0.10813807,2296.3,2296.2,7.90300844]
[1726549602951,0.10813807,2296.3,2296.2,9.92002657]
[1726549603151,0.10813807,2296.3,2296.2,9.92008187]
[1726549603388,0.10813807,2296.3,2296.2,5.56506187]
[1726549603683,0.10813807,2296.3,2296.2,4.81050055]
[1726549603886,0.10813807,2296.3,2296.2,4.81049998]
[1726549604193,0.10813807,2296.3,2296.2,4.8104998]
[1726549605065,0.10813807,2296.3,2296.2,4.81112705]
[1726549608501,0.10813807,2296.3,2296.2,5.72269848]
[1726549608869,0.10813807,2296.3,2296.2,4.81352938]
[1726549609070,0.10813807,2296.3,2296.2,5.72269848]
[1726549609272,0.10813807,2296.3,2296.2,11.95739491]
[1726549609996,2.4767,2296.6,2296.2,11.95739491]
[1726549610194,2.4767,2296.6,2296.3,3.36476185]
[1726549610363,2.4767,2296.6,2296.2,8.59263306]
[1726549610364,2.4767,2296.6,2296.4,1.34590474]
[1726549610579,2.4767,2296.6,2296.2,6.71295663]
[1726549610787,2.4767,2296.6,2296.3,3.3651535]
[1726549611106,0.10826729,2296.5,2296.4,1.3460614]
[1726549611411,0.10826729,2296.5,2296.4,4.81384098]
[1726549611638,0.10826729,2296.5,2296.4,4.8138339]
[1726549611902,0.10826729,2296.5,2296.4,4.81387692]
[1726549612293,0.10826729,2296.5,2296.4,2.79482893]
[1726549613424,0.10826729,2296.5,2296.4,2.79491233]
[1726549613594,0.10826729,2296.5,2296.4,1.3461448]
[1726549614076,0.10826729,2296.5,2296.2,5.2641691]
[1726549614281,0.10826729,2296.5,2296.3,3.3657077]
[1726549614486,0.10826729,2296.5,2296.2,5.2639991]
[1726549614712,0.10826729,2296.5,2296.3,3.3656073]
[1726549615007,0.10826729,2296.5,2296.2,6.71276663]
[1726549615192,0.10826729,2296.5,2296.3,3.36567208]
[1726549615505,0.10826729,2296.5,2296.4,1.34624366]
[1726549615899,0.10826729,2296.5,2296.2,12.79273464]
[1726549616095,0.10826729,2296.5,2296.3,3.36553508]
[1726549616266,0.10826729,2296.5,2296.2,6.71276663]
[1726549616466,0.10826729,2296.5,2296.3,3.36531186]
[1726549616667,0.10826729,2296.5,2296.2,6.71276663]
[1726549616867,0.10826729,2296.5,2296.3,3.36528032]
[1726549617063,0.10826729,2296.5,2296.2,6.71276663]
[1726549617390,0.10826729,2296.5,2296.3,3.3654513]
[1726549617563,0.10826729,2296.5,2296.2,6.71276663]
[1726549617770,0.10826729,2296.5,2296.3,3.3654465]
[1726549617993,0.10826729,2296.5,2296.2,11.06769663]
[1726549618203,0.10826729,2296.5,2296.3,3.36545602]
[1726549618400,0.10826729,2296.5,2296.2,7.2629542]
[1726549618613,0.10826729,2296.5,2296.3,3.36550916]
[1726549618902,0.10826729,2296.5,2296.2,7.2629542]
[1726549619114,0.10826729,2296.5,2296.3,3.36548096]
[1726549619276,0.10826729,2296.5,2296.4,1.3461833]
[1726549619612,0.10826729,2296.5,2296.4,1.34621076]
[1726549619814,0.10826729,2296.5,2296.2,11.06769663]
[1726549619995,0.10826729,2296.5,2296.3,3.36555838]
[1726549620193,0.10826729,2296.5,2296.2,6.71276663]
[1726549620404,0.10826729,2296.5,2296.3,3.3655786]
[1726549620591,0.10826729,2296.5,2296.4,1.34619317]
[1726549620797,0.10826729,2296.5,2296.2,11.06769663]
[1726549620997,0.10826729,2296.5,2296.3,3.36556698]
[1726549621180,0.10826729,2296.5,2296.4,1.34619768]
[1726549621389,0.10826729,2296.5,2296.2,6.71276663]
[1726549621719,0.10826729,2296.5,2296.3,3.36541918]
[1726549621905,0.10671748,2296.5,2296.4,1.34616767]
[1726549622207,0.10671748,2296.5,2296.2,11.06769663]
[1726549622375,0.10671748,2296.5,2296.3,3.36540378]
[1726549622711,0.10671748,2296.5,2296.2,6.71276663]
[1726549622867,0.10671748,2296.5,2296.3,3.36533208]
[1726549623078,0.10671748,2296.5,2296.4,1.34608884]
[1726549623383,0.10671748,2296.5,2296.4,1.34611643]
[1726549623575,0.10671748,2296.5,2296.4,1.34612889]
[1726549623800,0.10671748,2296.5,2296.4,1.34612305]
[1726549624013,0.10671748,2296.5,2296.4,1.34612084]
[1726549624914,0.10671748,2296.5,2296.4,3.36521359]
[1726549625533,0.10671748,2296.5,2296.4,4.13487264]
[1726549625716,11.1415,2296.8,2296.4,4.13487264]
[1726549625916,11.1415,2296.8,2296.3,5.2639091]
[1726549625917,4.45733746,2296.7,2296.3,5.2639091]
[1726549626112,4.45733746,2296.7,2296.4,3.36497878]
[1726549626410,4.45733746,2296.7,2296.3,5.2639091]
[1726549626616,4.35427,2296.6,2296.4,3.36510898]
[1726549626773,2.4731,2296.6,2296.2,13.41898663]
[1726549627123,0.10307911,2296.5,2296.3,4.27390065]
[1726549627282,0.10307911,2296.5,2296.4,3.36473155]
[1726549628631,0.10307911,2296.5,2296.4,1.34589262]
[1726549629237,0.10307911,2296.5,2296.4,3.36526135]
[1726549629599,0.10307911,2296.5,2296.4,3.36528887]
[1726549631297,0.10307911,2296.5,2296.4,3.36596605]
[1726549632125,0.10307911,2296.5,2296.4,3.36608129]
[1726549632327,0.10307911,2296.5,2296.4,3.36608713]
[1726549632538,0.10307911,2296.5,2296.4,1.34638642]
[1726549633210,0.10307911,2296.5,2296.4,3.36606386]
[1726549633821,0.10307911,2296.5,2296.4,1.34638642]
[1726549634138,0.10307911,2296.5,2296.4,3.36607128]
[1726549634649,0.10307911,2296.5,2296.4,1.34638642]
[1726549635510,0.10307911,2296.5,2296.4,3.3660509]
[1726549635894,0.10307911,2296.5,2296.4,1.34638642]
[1726549636101,0.10307911,2296.5,2296.4,3.36620827]
[1726549636310,0.10307911,2296.5,2296.4,1.34648331]
[1726549636516,0.10307911,2296.5,2296.4,3.36618847]
[1726549636723,0.10307911,2296.5,2296.4,3.36621571]
[1726549636920,0.10307911,2296.5,2296.4,3.3661842]
[1726549638259,0.10307911,2296.5,2296.4,1.34648331]
[1726549638570,0.10307911,2296.5,2296.4,3.36617798]
[1726549638935,0.10307911,2296.5,2296.4,3.36621668]
[1726549639649,0.10307911,2296.5,2296.4,7.72085668]
[1726549639845,0.10307911,2296.5,2296.4,29.4588192]
[1726549640045,7.47,2296.9,2296.7,6.64828]
[1726549640249,7.47,2296.9,2296.8,3.36621668]
[1726549640643,7.47,2296.9,2296.8,7.72009668]
[1726549640872,7.47,2296.9,2296.8,7.71610055]
[1726549641036,7.5628442,2296.9,2296.8,7.71610055]
[1726549641375,7.5628442,2296.9,2296.8,5.69876822]
[1726549641576,7.5628442,2296.9,2296.8,4.35388]
[1726549641771,7.5628442,2296.9,2296.7,8.09712753]
[1726549643353,7.5628442,2296.9,2296.7,9.43325827]
[1726549645103,7.5628442,2296.9,2296.7,7.13895827]
[1726549645256,0.0928442,2296.9,2296.7,7.13895827]
[1726549645662,2.4079,2297.1,2296.7,7.13895827]
[1726549645879,0.09279363,2296.8,2296.7,7.13895827]
[1726549646068,2.4079,2297.1,2296.7,7.13895827]
[1726549646260,0.09279363,2296.8,2296.7,5.80282753]
[1726549646562,0.09279363,2296.8,2296.6,8.70848]
[1726549646971,0.09279363,2296.8,2296.6,4.35424]
[1726549647305,0.09279363,2296.8,2296.7,0.81716075]
[1726549647599,0.09279363,2296.8,2296.7,5.17123075]
[1726549652508,0.09279363,2296.8,2296.7,0.81716075]
[1726549653593,0.09279363,2296.8,2296.7,5.17123075]
[1726549654013,0.09279363,2296.8,2296.7,0.81716075]
[1726549654175,0.09279363,2296.8,2296.6,4.35426]
[1726549654366,2.3575,2296.7,2296.4,3.0]
[1726549654566,0.09260529,2296.6,2296.4,3.0]
[1726549654810,0.09260529,2296.6,2296.4,4.64454574]
[1726549656171,0.09260529,2296.6,2296.3,5.80347753]
[1726549656789,0.09260529,2296.6,2296.3,1.44876753]
[1726549657003,0.09260529,2296.6,2296.5,1.44876753]
[1726549664836,0.09260529,2296.6,2296.3,5.80346753]
[1726549665014,0.09260529,2296.6,2296.3,11.35888251]
[1726549667351,0.09260529,2296.6,2296.3,7.00415251]
[1726549667642,0.09260529,2296.6,2296.3,11.35889251]
[1726549667935,0.09260529,2296.6,2296.3,11.35888251]
[1726549668133,0.09260529,2296.6,2296.3,7.00415251]
[1726549668430,0.09260529,2296.6,2296.3,5.80346753]
[1726549679347,0.09260529,2296.6,2296.4,1.34424411]
[1726549679556,0.09260529,2296.6,2296.3,5.80346753]
[1726549679718,0.09260529,2296.6,2296.4,1.34422387]
[1726549679927,0.09260529,2296.6,2296.3,5.80346753]
[1726549680148,0.09260529,2296.6,2296.4,1.34423338]
[1726549680457,0.09260529,2296.6,2296.3,7.58453326]
[1726549680626,0.09260529,2296.6,2296.4,1.34426952]
[1726549680821,0.09260529,2296.6,2296.3,11.93928326]
[1726549681150,0.09260529,2296.6,2296.4,1.34427221]
[1726549681343,0.09260529,2296.6,2296.3,7.58453326]
[1726549681545,0.09260529,2296.6,2296.4,1.34430923]
[1726549681750,0.09260529,2296.6,2296.3,7.58453326]
[1726549681965,0.09260529,2296.6,2296.4,1.34430973]
[1726549682259,0.09260529,2296.6,2296.3,7.58453326]
[1726549682558,0.09260529,2296.6,2296.4,1.34437812]
[1726549682859,0.09260529,2296.6,2296.3,11.93926326]
[1726549683040,0.09260529,2296.6,2296.4,1.34441539]
[1726549683362,0.09260529,2296.6,2296.3,7.58453326]
[1726549683667,0.09260529,2296.6,2296.4,1.34439671]
[1726549683951,0.09260529,2296.6,2296.3,7.58453326]
[1726549684161,0.09260529,2296.6,2296.4,1.34461881]
[1726549684339,0.09260529,2296.6,2296.3,11.93927326]
[1726549684648,0.09260529,2296.6,2296.4,1.34472661]
[1726549684852,0.09260529,2296.6,2296.3,7.58453326]
[1726549685054,0.09260529,2296.6,2296.4,1.34466408]
[1726549685364,0.09260529,2296.6,2296.3,6.71340744]
[1726549685527,0.09260529,2296.6,2296.4,3.36143103]
[1726549685721,0.09260529,2296.6,2296.3,6.71340744]
[1726549685722,0.09260529,2296.6,2296.3,11.06813744]
[1726549685930,0.09260529,2296.6,2296.4,1.34458512]
[1726549686156,0.09260529,2296.6,2296.3,12.84917217]
[1726549686360,0.09260529,2296.6,2296.4,3.36149916]
[1726549686657,0.09260529,2296.6,2296.3,12.84917217]
[1726549686952,0.09260529,2296.6,2296.4,3.36167368]
[1726549687110,0.09260529,2296.6,2296.3,12.84917217]
[1726549687318,0.09260529,2296.6,2296.4,3.36178716]
[1726549687650,0.09260529,2296.6,2296.3,12.84917217]
[1726549687957,0.09260529,2296.6,2296.4,3.3620945]
[1726549688155,0.09260529,2296.6,2296.3,12.84917217]
[1726549688352,0.09260529,2296.6,2296.4,3.36199363]
[1726549688658,0.09260529,2296.6,2296.3,12.84917217]
[1726549688818,0.09260529,2296.6,2296.4,3.3622379]
[1726549689021,0.09260529,2296.6,2296.3,8.49444217]
[1726549689253,0.09260529,2296.6,2296.4,3.36228711]
[1726549689556,0.09260529,2296.6,2296.3,12.84918217]
[1726549689730,0.09260529,2296.6,2296.4,3.36247497]
[1726549690054,0.09260529,2296.6,2296.3,12.84918217]
[1726549690288,0.09260529,2296.6,2296.4,3.36238218]
[1726549690429,0.09260529,2296.6,2296.3,12.84918217]
[1726549690631,0.09260529,2296.6,2296.4,3.36268433]
[1726549690814,0.09260529,2296.6,2296.3,12.84918217]
[1726549691015,0.09260529,2296.6,2296.5,8.11381753]
[1726549691317,6.66229,2296.9,2296.5,11.47628453]
[1726549691517,0.09214094,2296.6,2296.5,3.75936753]
[1726549691839,0.09214094,2296.6,2296.5,7.12200929]
[1726549692043,11.01607,2296.9,2296.5,8.84116259]
[1726549692245,6.66229,2296.9,2296.5,3.75936753]
[1726549692453,0.09232909,2296.8,2296.5,3.75936753]
[1726549698648,0.09232909,2296.8,2296.6,1.34577689]
[1726549698743,4.44620909,2296.8,2296.4,5.26443991]
[1726549699075,4.44620909,2296.8,2296.5,3.36451335]
[1726549699367,4.44620909,2296.8,2296.6,1.34580534]
[1726549699671,4.44620909,2296.8,2296.4,5.26443991]
[1726549699967,4.44620909,2296.8,2296.5,3.36493341]
[1726549700163,4.44620909,2296.8,2296.6,1.34597336]
[1726549700355,4.44620909,2296.8,2296.4,5.26443991]
[1726549700356,5.557059,2296.8,2296.4,5.26443991]